[Event "Polish University-ch Open 2024"]
[Site "Lublin"]
[Date "2024.02.23"]
[Round "1.1"]
[White "Kosakowski, Jakub"]
[Black "Charles, Cleophas"]
[Result "1-0"]
[ECO "B08"]
[WhiteElo "2482"]
[BlackElo "1500"]
[Annotator "TA"]
[PlyCount "63"]
[EventDate "2024.02.22"]
[EventType "swiss"]
[EventCountry "POL"]
[SourceTitle "playchess.com"]
[Source "ChessBase"]
[SourceQuality "1"]
[TimeControl "600+3"]

{[%evp 15,63,31,41,41,47,31,45,39,64,54,62,35,61,53,75,56,61,60,110,92,158,128,187,53,139,14,137,142,191,201,458,453,411,410,977,960,916,900,29979,29981,1920,1370,5311,2432,29990,29991,29991,29992,29993,29991]} 1. Nf3 {[%emt 0:00:04]} d6 {[%emt 0:00:05]} 2. e4 {[%emt 0:00:11]} Nf6 {[%emt 0:00:05]} 3. Nc3 {[%emt 0:00:04]} g6 {[%emt 0:00:05]} 4. d4 {[%emt 0:00:04]} Bg7 {[%emt 0:00:05]} 5. Be2 {[%emt 0:00:02]} c6 {[%emt 0:00:03]} 6. a4 {[%emt 0:00:06]} Nbd7 {[%emt 0:00:07]} 7. O-O {[%emt 0:00:11]} O-O {[%emt 0:00:05]} 8. h3 {[%emt 0:00:12]} e5 {[%emt 0:00:17]} 9. dxe5 {[%emt 0:00:08]} Nxe5 {[%emt 0:00:07]} 10. Bf4 {[%emt 0:00:18]} Qc7 {[%emt 0:00:26]} 11. Qd2 {[%emt 0:00:07] White is slightly better.} Nh5 {[%emt 0:00:10]} 12. Bh2 {[%emt 0:00:09]} Nf6 {[%emt 0:01:04]} 13. Rad1 {[%emt 0:00:06]} Ne8 {[%emt 0:01:40]} 14. Nd4 {[%emt 0:00:03]} f5 {[%emt 0:00:40]} 15. exf5 {[%emt 0:00:21] White is more active.} Bxf5 {[%emt 0:00:13]} 16. Nxf5 {[%emt 0:00:34]} Rxf5 {[%emt 0:00:15]} (16... gxf5 $14 17. Rfe1 Qf7) 17. Kh1 {[%emt 0:00:18]} Rd8 {[%emt 0:00:33]} (17... Rf8 $142) 18. f4 $16 {[%emt 0:00:09]} Nd7 {[%emt 0:00:20]} (18... Nf7 $16 19. Bd3 Rh5) 19. b3 {[%emt 0:00:33]} (19. Bd3 $18) 19... Nc5 {[%emt 0:00:16]} (19... Qa5 $1 $14 20. Ne4 Qxd2 21. Rxd2 (21. Nxd2 Rf7 $14) 21... d5) 20. Bg4 {[%emt 0:00:36]} ({White should try} 20. b4 $16 Bxc3 21. Qxc3) 20... Rf8 {[%emt 0:00:27]} (20... Qa5 $1 $11 21. Nb1 (21. Bxf5 Bxc3 $17) 21... Qxd2 22. Nxd2 Rf8) 21. b4 $36 {[%emt 0:00:26][%mdl 2048] White is in control.} Bxc3 {[%emt 0:00:46]} (21... Nd7 $16 {was called for.} 22. Be6+ Kh8) 22. Qxc3 $18 {[%emt 0:00:04]} Ne4 {[%emt 0:00:06] [#]} (22... h5 23. Bf3 (23. bxc5 hxg4 24. hxg4 Qe7 $18) (23. Bxh5 Ne4 $18) 23... Ne6) 23. Be6+ {[%emt 0:00:02]} Rf7 {[%emt 0:00:16]} 24. Qe3 {[%emt 0:00:04]} (24. Bxf7+ Qxf7 25. Qd4 N8f6 $18) 24... d5 {[%emt 0:00:21]} (24... N8f6 $142 25. f5 (25. Bxf7+ Qxf7 26. Qxa7 Rd7 $18) (25. Qxa7 Kf8 $18) 25... Qe7 26. fxg6 (26. Bxf7+ Kxf7 27. fxg6+ Kxg6 $18) (26. Qxa7 g5 $18) 26... hxg6) 25. f5 {[%emt 0:00:03]} Qe7 {[%emt 0:00:40]} 26. fxg6 {[%emt 0:00:03]} N8f6 {[%emt 0:00:35]} 27. gxf7+ {[%emt 0:00:12]} Kg7 {[%emt 0:00:08]} 28. Bf5 {[%emt 0:00:13]} Kxf7 {[%emt 0:00:41]} 29. Bxe4 {[%emt 0:00:09]} dxe4 {[%emt 0:00:18]} 30. Rxd8 {[%emt 0:00:04] White mates.} Qxd8 {[%emt 0:00:02]} 31. Be5 {[%emt 0:00:02]} Qe7 {[%emt 0:00:22]} 32. Qxe4 {[%emt 0:00:03] Weighted Error Value: White=0.21 (precise) /Black=1.16.  Mistake:       	White=2     	Black=8      Inaccurate:     	White=1     	Black=1      OK:         	White=6     	Black=2      Best:        	White=3     	Black=1} 1-0

[Event "Polish University-ch Open 2024"]
[Site "Lublin"]
[Date "2024.02.23"]
[Round "1.2"]
[White "Mosny, Pawel"]
[Black "Janik, Igor"]
[Result "0-1"]
[ECO "A46"]
[WhiteElo "1549"]
[BlackElo "2499"]
[Annotator "TA"]
[PlyCount "78"]
[EventDate "2024.02.22"]
[EventType "swiss"]
[EventCountry "POL"]
[SourceTitle "playchess.com"]
[Source "ChessBase"]
[SourceQuality "1"]
[TimeControl "600+3"]

{[%evp 9,77,0,0,0,0,0,8,-10,-14,-24,-16,-58,-42,-34,-33,-77,-78,-97,-94,-123,-51,-64,-46,-77,-63,-74,-68,-74,-66,-80,-82,-84,-61,-85,-81,-83,-56,-66,-84,-91,-73,-68,-68,-71,-38,-39,-38,-39,-39,-813,-802,-794,-794,-1375,-1057,-1318,-1319,-1568,-1549,-29986,-29987,-29987,-29988,-29989,-29989,-29989,-1056,-29988,-29989,-29999]} 1. d4 {[%emt 0:00:02]} d6 {[%emt 0:00:01]} 2. Bf4 {[%emt 0:00:03]} Nf6 {[%emt 0:00:04]} 3. e3 {[%emt 0:00:02]} Nbd7 {[%emt 0:00:02]} 4. Nf3 {[%emt 0:00:03]} Nh5 {[%emt 0:00:02]} 5. Bg5 {[%emt 0:00:05][%cal Bf4g5,Bg5h4,Bh4g3][%mdl 32]} h6 {[%emt 0:00:01]} 6. Bh4 {[%emt 0:00:00]} g5 {[%emt 0:00:01]} 7. Bg3 {[%emt 0:00:01]} Bg7 {[%emt 0:00:01]} 8. Nbd2 {[%emt 0:00:58] The position is equal.} e6 {[%emt 0:00:02]} 9. Be2 {[%emt 0:01:23]} Qe7 {[%emt 0:00:04]} 10. Rc1 {[%emt 0:00:24]} Nxg3 {[%emt 0:00:17]} 11. hxg3 {[%emt 0:00:02]} b6 {[%emt 0:00:00]} 12. a3 {[%emt 0:00:11]} Bb7 {[%emt 0:00:03]} 13. c4 {[%emt 0:00:48]} c5 {[%emt 0:00:03]} 14. O-O {[%emt 0:00:18]} O-O {[%emt 0:00:02]} (14... h5 $17 {...0-0-0 would now be deadly.} 15. Bd3 g4) 15. b4 {[%emt 0:00:34]} a5 {[%emt 0:00:50]} 16. Qb3 {[%emt 0:00:18]} Rfb8 {[%emt 0:00:14]} 17. Rfd1 {[%emt 0:00:19]} axb4 {[%emt 0:00:07]} 18. axb4 {[%emt 0:00:03]} g4 {[%emt 0:00:18]} 19. Ne1 {[%emt 0:00:29]} h5 {[%emt 0:00:05]} 20. Nf1 {[%emt 0:00:54]} f5 {[%emt 0:00:22]} 21. d5 {[%emt 0:00:18]} e5 {[%emt 0:00:01]} 22. Ra1 {[%emt 0:00:25]} e4 {[%emt 0:00:12]} 23. Rxa8 {[%emt 0:00:38]} Rxa8 {[%emt 0:00:00]} 24. Rb1 {[%emt 0:00:10]} Ra6 {[%emt 0:00:06] Black is more active.} 25. Nc2 {[%emt 0:00:18][%cal Be1c2,Bc2a3,Ba3b5][%mdl 32]} Bc8 {[%emt 0:00:08]} 26. Na3 {[%emt 0:00:13]} cxb4 {[%emt 0:00:19]} 27. Qxb4 {[%emt 0:00:03]} Nc5 {[%emt 0:00:01] [#] Hoping for ...Ra4.} 28. Nb5 {[%emt 0:00:09]} Be5 {[%emt 0:00:03]} 29. Nd2 $2 {[%emt 0:00:07][%mdl 8192] Now White is beyond hope.} (29. Qd2 $15) 29... Ra4 $19 {[%emt 0:00:15]} 30. Qxa4 {[%emt 0:01:11]} Nxa4 {[%emt 0:00:02]} 31. Nb3 {[%emt 0:00:07]} Bd7 {[%emt 0:00:03] White must now prevent ...h4.} 32. N3d4 {[%emt 0:00:03]} Bxb5 {[%emt 0:00:01]} 33. Nxb5 {[%emt 0:00:04]} h4 {[%emt 0:00:13]} 34. Bd1 {[%emt 0:00:17] [#]} hxg3 $1 {[%emt 0:00:06]} 35. Bxa4 {[%emt 0:00:48]} Qh4 {[%emt 0:00:02]} 36. Rd1 {[%emt 0:00:00]} Qh2+ {[%emt 0:00:17]} 37. Kf1 {[%emt 0:00:00]} Qh1+ {[%emt 0:00:02]} 38. Ke2 {[%emt 0:00:00]} Qxg2 {[%emt 0:00:01][%csl Gg3][%cal Rg2f2]} 39. Nc7 {[%emt 0:00:00]} Qxf2# {[%emt 0:00:32] Weighted Error Value: White=0.84/Black=0.40.  Loses game:     	White=1     	---        Mistake:       	---       	Black=1      Inaccurate:     	White=4     	Black=1      OK:         	White=7     	Black=7      Best:        	---       	Black=1} 0-1

[Event "Polish University-ch Open 2024"]
[Site "Lublin"]
[Date "2024.02.23"]
[Round "1.3"]
[White "Szpar, Milosz"]
[Black "Adamowicz, Michal"]
[Result "1-0"]
[ECO "A34"]
[WhiteElo "2495"]
[BlackElo "1566"]
[Annotator "RC"]
[PlyCount "52"]
[EventDate "2024.02.22"]
[EventType "swiss"]
[EventCountry "POL"]
[SourceTitle "playchess.com"]
[Source "ChessBase"]
[SourceQuality "1"]
[TimeControl "600+3"]

1. Nf3 {[%emt 0:00:03]} Nf6 {[%emt 0:00:03]} 2. c4 {[%emt 0:00:02]} c5 {[%emt 0:00:03]} 3. Nc3 {[%emt 0:00:09]} Nc6 {[%emt 0:00:01]} 4. e3 {[%emt 0:00:09]} d5 {[%emt 0:00:12]} 5. cxd5 {[%emt 0:00:02]} Nxd5 {[%emt 0:00:02]} 6. Bb5 {[%emt 0:00:04]} Ndb4 {[%emt 0:05:17]} 7. d4 {[%emt 0:00:32]} cxd4 {[%emt 0:01:10]} 8. exd4 {[%emt 0:00:05]} a6 {[%emt 0:01:40]} 9. Ba4 {[%emt 0:00:22]} b5 {[%emt 0:00:17]} 10. Bb3 {[%emt 0:00:08]} Na5 {[%emt 0:00:50]} 11. O-O {[%emt 0:01:12]} e6 {[%emt 0:00:08]} 12. Bg5 {[%emt 0:01:51]} Be7 {[%emt 0:00:14]} 13. Bxe7 {[%emt 0:00:02]} Qxe7 {[%emt 0:00:01]} 14. a3 {[%emt 0:00:06]} Nxb3 {[%emt 0:00:23]} 15. Qxb3 {[%emt 0:00:02]} Nc6 {[%emt 0:00:04]} 16. d5 {[%emt 0:00:04]} Na5 {[%emt 0:00:04]} 17. Qb4 {[%emt 0:00:01]} Nb7 {[%emt 0:00:16]} 18. Rfd1 {[%emt 0:00:24]} Qxb4 {[%emt 0:00:03]} 19. axb4 {[%emt 0:00:01]} Rb8 {[%emt 0:00:03]} 20. Rxa6 {[%emt 0:00:06]} O-O {[%emt 0:00:05]} 21. d6 {[%emt 0:00:20]} Bd7 {[%emt 0:00:10]} 22. Ne5 {[%emt 0:00:23]} Rfd8 {[%emt 0:00:00]} 23. Ne4 {[%emt 0:00:36]} f6 {[%emt 0:00:00]} 24. Nxd7 {[%emt 0:00:05]} Rxd7 {[%emt 0:00:01]} 25. Nc5 {[%emt 0:00:05]} Rdd8 {[%emt 0:00:07]} 26. Rb6 {[%emt 0:00:14]} Nxc5 {[%emt 0:00:07]} 1-0

[Event "Polish University-ch Open 2024"]
[Site "Lublin"]
[Date "2024.02.23"]
[Round "1.4"]
[White "Malek, Szymon"]
[Black "Psyk, Radoslaw"]
[Result "0-1"]
[ECO "B03"]
[WhiteElo "1604"]
[BlackElo "2461"]
[Annotator "TA"]
[PlyCount "88"]
[EventDate "2024.02.22"]
[EventType "swiss"]
[EventCountry "POL"]
[SourceTitle "playchess.com"]
[Source "ChessBase"]
[SourceQuality "1"]
[TimeControl "600+3"]

{[%evp 13,88,33,29,40,37,20,35,24,30,12,16,15,19,0,9,-18,-10,-30,-18,-9,0,-52,-32,-45,-28,-34,0,0,15,-6,0,-8,-19,-20,-18,-30,-23,-24,-18,-34,-29,-34,-14,-37,-28,-39,-39,-37,84,-20,-17,-12,-26,-40,-21,-102,6,-39,-31,-44,-41,-167,-176,-168,-151,-269,-262,-284,-263,-565,-547,-1409,-1273,-6038,-6032,-29991,-29992]} 1. e4 {[%emt 0:00:01][%cal Be2e4,Be4e5][%mdl 32]} Nf6 {[%emt 0:00:04]} 2. e5 {[%emt 0:00:02]} Nd5 {[%emt 0:00:01]} 3. c4 {[%emt 0:00:01]} Nb6 {[%emt 0:00:01]} 4. d4 {[%emt 0:00:03]} d6 {[%emt 0:00:02]} 5. exd6 {[%emt 0:00:01]} exd6 {[%emt 0:00:01]} 6. Nc3 {[%emt 0:00:01]} Be7 {[%emt 0:00:02]} 7. Be3 {[%emt 0:00:15]} O-O {[%emt 0:00:04]} 8. Bd3 {[%emt 0:00:26]} Re8 {[%emt 0:00:27]} 9. Nge2 {[%emt 0:00:31]} Na6 {[%emt 0:00:11][%cal Bb8a6,Ba6c7,Bc7d5][%mdl 32]} 10. a3 {[%emt 0:00:06] Prevents Nb4. White is slightly better.} c6 {[%emt 0:00:01]} 11. Qc2 {[%emt 0:00:37]} g6 {[%emt 0:00:24]} 12. O-O {[%emt 0:00:14]} Nc7 {[%emt 0:00:02]} 13. Rae1 {[%emt 0:01:13]} d5 {[%emt 0:00:05]} 14. cxd5 {[%emt 0:00:33]} Ncxd5 {[%emt 0:00:34]} 15. Bd2 {[%emt 0:00:33]} Bf6 {[%emt 0:00:17]} 16. Ne4 {[%emt 0:01:18]} Bg7 {[%emt 0:00:13]} 17. Bc3 {[%emt 0:00:02]} (17. Bg5 $11 Qc7 18. Kh1) 17... Bg4 {[%emt 0:01:19]} 18. h3 {[%emt 0:00:32]} Bxe2 {[%emt 0:00:15]} 19. Bxe2 {[%emt 0:01:16]} Qh4 {[%emt 0:00:26]} 20. Bf3 {[%emt 0:00:52]} Re7 {[%emt 0:00:27]} 21. Nc5 {[%emt 0:01:10]} (21. Bd2 $5 h6 $8 22. Kh2 $14) 21... Rae8 {[%emt 0:00:13]} 22. Rxe7 {[%emt 0:00:09]} Rxe7 {[%emt 0:00:02]} 23. Qd2 {[%emt 0:00:13]} Nc4 {[%emt 0:01:24] A dynamic duo of knights.} 24. Qd3 {[%emt 0:00:02]} Nd6 {[%emt 0:00:02]} 25. Bxd5 {[%emt 0:00:14]} cxd5 {[%emt 0:00:02]} 26. Qf3 {[%emt 0:00:13]} Qg5 {[%emt 0:00:25]} (26... Bxd4 $2 {too greedy.} 27. g3 (27. Qxd5 Bxc3 28. Qxd6 Bd4 $11) 27... Bxf2+ 28. Rxf2 $18) 27. Qd3 {[%emt 0:00:26]} b6 {[%emt 0:00:13]} 28. Nb3 {[%emt 0:00:05][%cal Bc5b3,Bb3d2,Bd2f3,Bf3e5][%mdl 32]} Nf5 {[%emt 0:00:18]} (28... Qf5 {simplifies} 29. Qxf5 Nxf5 30. Rd1 Rc7) 29. Nd2 {[%emt 0:00:13]} Nh4 {[%emt 0:00:33][%csl Gh4][%cal Rg5g2] [#]} 30. g3 {[%emt 0:00:00]} Nf5 {[%emt 0:00:18]} (30... Qf5 $15 {stays ahead.} 31. Qxf5 Nxf5) 31. Kh2 {[%emt 0:00:03]} (31. Nf3 $16 Qf6 32. Qb5) 31... h5 {[%emt 0:00:02][%cal Bh7h5,Bh5h4][%mdl 32] ...h4 would now be deadly.} 32. Nf3 {[%emt 0:00:01]} Qf6 {[%emt 0:00:06]} 33. Ne5 {[%emt 0:00:02]} h4 {[%emt 0:00:08]} 34. g4 {[%emt 0:00:02]} (34. Kg2 $11) 34... Nd6 {[%emt 0:00:06]} (34... Nxd4 $1 $17 35. f4 Nc6 (35... Ne6 $2 36. Nd7 $18) 36. Qxd5 Nxe5 37. Bxe5 Qe6 38. Qxe6 Rxe6 39. Bxg7 Re2+ (39... Kxg7 40. Kg2 $11) 40. Kg1 Kxg7) 35. f4 {[%emt 0:00:01]} Ne4 {[%emt 0:00:10]} 36. Be1 {[%emt 0:00:10]} Rc7 {[%emt 0:00:13]} 37. g5 {[%emt 0:00:06] This move loses the game for White.} (37. Kg2 $15) 37... Qf5 $19 {[%emt 0:00:20] [#] Threatens to win with ...Bxe5.} 38. Bxh4 {[%emt 0:00:03]} Qc8 {[%emt 0:00:04] Strongly threatening ...Rc2+.} 39. Kh1 {[%emt 0:00:04]} (39. Rg1 $17) 39... Rc2 {[%emt 0:00:06]} 40. Be1 {[%emt 0:00:02]} Rxb2 {[%emt 0:00:08]} 41. Qf3 $2 {[%emt 0:00:05]} (41. a4 {is more resistant.}) 41... Qc2 {[%emt 0:00:04]} 42. Bg3 {[%emt 0:00:03] Dodges Qh2+} Rb3 {[%emt 0:00:04]} 43. Qg2 {[%emt 0:00:03]} Nxg3+ {[%emt 0:00:02]} 44. Kh2 {[%emt 0:00:03]} Nxf1+ {[%emt 0:00:02] Weighted Error Value: White=0.85/Black=0.19 (very precise) .  Mistake:       	White=6     	Black=2      Inaccurate:     	White=4     	Black=1      OK:         	White=7     	Black=11     Best:        	---       	Black=2} 0-1

[Event "Polish University-ch Open 2024"]
[Site "Lublin"]
[Date "2024.02.23"]
[Round "1.5"]
[White "Niedbala, Bartlomiej"]
[Black "Kabzinski, Jan"]
[Result "1-0"]
[ECO "B66"]
[WhiteElo "2382"]
[BlackElo "1635"]
[Annotator "TA"]
[PlyCount "73"]
[EventDate "2024.02.22"]
[EventType "swiss"]
[EventCountry "POL"]
[SourceTitle "playchess.com"]
[Source "ChessBase"]
[SourceQuality "1"]
[TimeControl "600+3"]

{[%evp 22,72,27,29,23,4,29,28,46,0,15,11,31,-10,17,0,29,-20,56,60,73,0,0,0,15,8,43,19,100,0,26,23,112,113,118,134,447,468,447,391,960,881,5377,641,668,645,645,537,788,779,29998,29999,29999]} 1. e4 {[%emt 0:00:02]} c5 {[%emt 0:00:01]} 2. Nf3 {[%emt 0:00:01]} Nc6 {[%emt 0:00:01]} 3. d4 {[%emt 0:00:02]} cxd4 {[%emt 0:00:01]} 4. Nxd4 {[%emt 0:00:02]} Nf6 {[%emt 0:00:01]} 5. Nc3 {[%emt 0:00:01]} d6 {[%emt 0:00:01]} 6. Bg5 {[%emt 0:00:01]} e6 {[%emt 0:00:01]} 7. Qd2 {[%emt 0:00:01]} a6 {[%emt 0:00:00]} 8. O-O-O {[%emt 0:00:03]} Bd7 {[%emt 0:00:02][%cal Bc8d7,Bd7c6,Bc6b7][%mdl 32]} 9. Kb1 {[%emt 0:00:01]} h6 {[%emt 0:00:05]} 10. Be3 {[%emt 0:00:12]} b5 {[%emt 0:00:01]} 11. Nxc6 {[%emt 0:00:16]} Bxc6 {[%emt 0:00:02]} 12. f3 {[%emt 0:00:01]} Qc7 {[%emt 0:00:31]} 13. Bd3 {[%emt 0:01:04]} Be7 {[%emt 0:00:04]} 14. Ne2 {[%emt 0:00:27]} Nd7 {[%emt 0:09:54] White has an edge.} 15. Nd4 {[%emt 0:00:38]} Bb7 {[%emt 0:00:00]} 16. g4 {[%emt 0:01:10]} Ne5 {[%emt 0:00:00]} 17. h4 {[%emt 0:00:26]} h5 {[%emt 0:00:00]} 18. g5 {[%emt 0:00:21]} g6 {[%emt 0:00:00]} 19. Rhf1 {[%emt 0:00:52]} (19. f4 $142 Nxd3 20. cxd3) 19... Nc4 {[%emt 0:00:00]} (19... d5 $11) 20. Bxc4 $14 {[%emt 0:00:17]} Qxc4 {[%emt 0:00:00]} 21. b3 {[%emt 0:00:12]} ({White should play} 21. Nb3 $16) 21... Qc7 $11 {[%emt 0:00:00]} 22. Qd3 {[%emt 0:00:05]} Rc8 {[%emt 0:00:00]} 23. Bc1 {[%emt 0:00:23]} b4 {[%emt 0:00:00]} 24. Bb2 {[%emt 0:00:07][%cal Od4e6] Strongly threatening Nxe6!} O-O {[%emt 0:00:00]} (24... e5 $11) 25. Rd2 {[%emt 0:00:36]} (25. Nxe6 $16 fxe6 26. e5 Qxc2+ 27. Qxc2 Rxc2 28. Kxc2 Bxf3 29. Rxf3 Rxf3 30. exd6 Rf2+ 31. Kc1) 25... Qb6 {[%emt 0:00:00]} 26. f4 $1 {[%emt 0:00:44]} d5 {[%emt 0:00:00]} (26... e5 $11 27. Ne2 a5) 27. exd5 $16 {[%emt 0:00:02]} Bxd5 {[%emt 0:00:00]} 28. f5 {[%emt 0:00:04]} Rc3 $2 {[%emt 0:00:00][%mdl 8192] A mistake that costs the game.} (28... e5 $16) 29. Bxc3 $18 {[%emt 0:00:20]} bxc3 {[%emt 0:00:00]} 30. Rdf2 {[%emt 0:00:28]} (30. Qxc3 Bb4 31. Qd3 exf5 (31... gxf5 $2 {is the wrong capture.} 32. Re2 $18) 32. Nxf5 gxf5 33. Qxd5 Bxd2 34. Qxd2 Rd8 $18) 30... Bc5 $2 {[%emt 0:00:00]} (30... e5 31. Ne2 Rd8) 31. fxg6 {[%emt 0:00:25]} Bxd4 {[%emt 0:00:00]} 32. gxf7+ {[%emt 0:00:02]} (32. Rxf7 $142 Bc5 33. Qxc3) 32... Kg7 {[%emt 0:00:00][%cal Bg8g7,Bg7f7,Bf7e8][%mdl 32]} 33. Rf4 {[%emt 0:00:40]} Be5 {[%emt 0:00:02][%cal Ob6c5] [#]} 34. Rf6 $1 {[%emt 0:00:22][%mdl 512]} Bxf6 {[%emt 0:00:07]} 35. gxf6+ {[%emt 0:00:01]} Kxf7 {[%emt 0:00:04]} 36. Qh7+ {[%emt 0:00:01]} Ke8 {[%emt 0:00:03]} 37. Qe7# {[%emt 0:00:01] Weighted Error Value: White=0.43/Black=0.70.  Loses game:     	---       	Black=1      Mistake:       	White=3     	Black=4      Inaccurate:     	White=2     	Black=6      OK:         	White=5     	Black=3      Best:        	White=4     	Black=1      Strong:       	White=1     	---} 1-0

[Event "Polish University-ch Open 2024"]
[Site "Lublin"]
[Date "2024.02.23"]
[Round "1.6"]
[White "Drobka, Marcin"]
[Black "Baum, Jonasz"]
[Result "0-1"]
[ECO "B90"]
[WhiteElo "1643"]
[BlackElo "2400"]
[Annotator "TA"]
[PlyCount "68"]
[EventDate "2024.02.22"]
[EventType "swiss"]
[EventCountry "POL"]
[SourceTitle "playchess.com"]
[Source "ChessBase"]
[SourceQuality "1"]
[TimeControl "600+3"]

{[%evp 10,68,23,0,0,-4,15,0,-9,-6,-3,-6,-12,-6,-6,-14,-4,-23,-5,-47,-25,-81,-89,-187,-172,-188,-202,-185,-193,-354,-222,-422,-417,-421,-410,-505,-467,-613,-600,-629,-622,-614,-524,-546,-538,-529,-519,-588,-595,-722,-705,-689,-585,-690,-604,-685,-675,-890,-870,-826,-781]} 1. e4 {[%emt 0:00:01]} c5 {[%emt 0:00:00]} 2. Nf3 {[%emt 0:00:01]} d6 {[%emt 0:00:01]} 3. d4 {[%emt 0:00:01]} cxd4 {[%emt 0:00:01]} 4. Nxd4 {[%emt 0:00:01]} Nf6 {[%emt 0:00:01]} 5. Nc3 {[%emt 0:00:01]} a6 {[%emt 0:00:01]} 6. a3 {[%emt 0:00:01]} e5 {[%emt 0:00:05]} 7. Nf3 {[%emt 0:00:01]} Be7 {[%emt 0:00:11]} 8. Bc4 {[%emt 0:00:02]} O-O {[%emt 0:00:13] The position is equal.} 9. O-O {[%emt 0:00:02]} b5 {[%emt 0:00:24]} 10. Bd5 {[%emt 0:00:45]} Nxd5 {[%emt 0:00:07]} 11. Nxd5 {[%emt 0:00:01]} Bb7 {[%emt 0:00:14]} 12. Be3 {[%emt 0:00:33]} Nd7 {[%emt 0:00:03]} 13. Qd3 {[%emt 0:00:52]} Rc8 {[%emt 0:00:58]} 14. Rad1 {[%emt 0:00:58]} Bxd5 {[%emt 0:00:05]} 15. exd5 {[%emt 0:00:08]} (15. Qxd5 $11 Rxc2 16. Rb1) 15... f5 $17 {[%emt 0:00:10] White is on the road to losing.} 16. Qb3 {[%emt 0:00:35]} (16. Ne1 $17) 16... f4 $19 {[%emt 0:01:32]} 17. Bd2 {[%emt 0:00:35]} Nc5 {[%emt 0:00:01]} 18. Qa2 {[%emt 0:00:19][%cal Of3e5]} Bf6 {[%emt 0:00:05] ...e4 is the strong threat.} 19. Bc3 $2 {[%emt 0:00:40]} (19. Ne1 {was called for.}) 19... Na4 {[%emt 0:00:11] ...Rxc3 would now be deadly.} 20. Bxe5 $2 {[%emt 0:02:10]} (20. Qb1) 20... dxe5 {[%emt 0:00:11]} ({Don't do} 20... Bxe5 21. c3 $19) 21. d6+ {[%emt 0:00:01]} Kh8 {[%emt 0:00:03]} 22. Rfe1 {[%emt 0:00:17]} Rxc2 {[%emt 0:00:22] Black is clearly winning.} 23. Nxe5 {[%emt 0:00:06]} Bxe5 {[%emt 0:00:02]} (23... Nxb2 $2 24. Nf7+ Rxf7 25. Qxf7 $18) 24. Rxe5 {[%emt 0:00:02] [#]} Qxd6 $3 {[%emt 0:00:10][%mdl 512]} 25. Red5 {[%emt 0:00:24]} (25. Qd5 Qxd5) 25... Qb6 {[%emt 0:00:18]} 26. R5d2 {[%emt 0:00:15]} Rxd2 {[%emt 0:00:23]} 27. Rxd2 {[%emt 0:00:02]} Qc5 {[%emt 0:00:08]} 28. Rd1 {[%emt 0:01:15] Dodges Qc1} f3 {[%emt 0:00:02]} 29. gxf3 {[%emt 0:00:07]} Qg5+ {[%emt 0:00:07]} 30. Kh1 {[%emt 0:00:03]} Qf5 {[%emt 0:00:06]} 31. Qb3 {[%emt 0:00:16]} h6 {[%emt 0:00:02][%cal Oa4b2] Threatens to win with ...Nxb2!} (31... Qxf3+ $2 {perishes.} 32. Qxf3 Kg8 33. Qd5+ Kh8 34. b3 $18) 32. Kg2 {[%emt 0:00:16] [#]} Nxb2 $1 {[%emt 0:00:02][%mdl 512]} 33. Rd5 {[%emt 0:00:06]} (33. Rd4 Nc4) 33... Qg6+ {[%emt 0:00:03]} 34. Kf1 {[%emt 0:00:04]} Nc4 {[%emt 0:00:04] Weighted Error Value: White=0.53/Black=0.15 (very precise) .  Mistake:       	White=4     	---        Inaccurate:     	White=2     	Black=1      OK:         	White=3     	Black=14     Best:        	---       	Black=1} 0-1